fUST/lending_fUST_20240613
["ID","MTS","AMOUNT","RATE_DAILY","PERIOD"]
[329285310,1718215853372,-500.0,0.00016712,2]
[329285311,1718215853383,-500.0,0.00016712,2]
[329285312,1718215853393,-501.41,0.00016712,2]
[329285313,1718215853403,-188.48079252,0.00016712,2]
[329285314,1718215853418,-311.51920748,0.00016712,2]
[329285315,1718215853428,-500.0,0.00016712,2]
[329285316,1718215853439,-500.0,0.00016712,2]
[329285317,1718215853449,-500.0,0.00016712,2]
[329285318,1718215853459,-500.0,0.00016712,2]
[329285320,1718215853471,-500.0,0.00016712,2]
[329285321,1718215853481,-500.0,0.00016712,2]
[329285322,1718215853492,-787.83,0.00016712,2]
[329285323,1718215853502,-679.47,0.00016712,2]
[329285324,1718215853512,-500.0,0.00016712,2]
[329285325,1718215853523,-599.08803135,0.00016712,2]
[329285327,1718215853533,-500.0,0.00016712,2]
[329285329,1718215853543,-500.0,0.00016712,2]
[329285331,1718215853554,-500.0,0.00016712,2]
[329285333,1718215853564,-500.0,0.00016712,2]
[329285335,1718215853574,-500.0,0.00016712,2]
[329285337,1718215853584,-759.79,0.00016712,2]
[329285339,1718215853594,-500.0,0.00016712,2]
[329285340,1718215853605,-5706.17,0.00016712,2]
[329285341,1718215853616,-500.0,0.00016712,2]
[329285343,1718215853627,-902.94,0.00016712,2]
[329285344,1718215853637,-500.0,0.00016712,2]
[329285345,1718215853648,-500.0,0.00016712,2]
[329285346,1718215853659,-500.0,0.00016712,2]
[329285347,1718215853670,-500.0,0.00016712,2]
[329285348,1718215853682,-1758.80491111,0.00016712,2]
[329285349,1718215853695,-4006.18508889,0.00016712,2]
[329285350,1718215853706,-1805.76,0.00016712,2]
[329285351,1718215853717,-500.0,0.00016712,2]
[329285352,1718215853727,-500.0,0.00016712,2]
[329285353,1718215853738,-833.24,0.00016712,2]
[329285354,1718215853748,-2946.25,0.00016712,2]
[329285355,1718215853758,-500.0,0.00016712,2]
[329285356,1718215853769,-654.62,0.00016712,2]
[329285357,1718215853780,-500.0,0.00016712,2]
[329285358,1718215853790,-401.24453925,0.00016712,2]
[329285359,1718215853800,-500.0,0.00016712,2]
[329285360,1718215853811,-5127.44,0.00016712,2]
[329285362,1718215853822,-500.0,0.00016712,2]
[329285364,1718215853833,-560.78,0.00016712,2]
[329285366,1718215853844,-866.72,0.00016712,2]
[329285367,1718215853855,-500.0,0.00016712,2]
[329285369,1718215853866,-1720.65,0.00016712,2]
[329285371,1718215853877,-500.0,0.00016712,2]
[329285372,1718215853887,-500.0,0.00016712,2]
[329285373,1718215853899,-500.0,0.00016712,2]
[329285374,1718215853910,-500.0,0.00016712,2]
[329285375,1718215853921,-1267.84,0.00016712,2]
[329285376,1718215853932,-500.0,0.00016712,2]
[329285377,1718215853944,-500.0,0.00016712,2]
[329285378,1718215853954,-500.0,0.00016712,2]
[329285379,1718215853965,-500.0,0.00016712,2]
[329285380,1718215853976,-569.97,0.00016712,2]
[329285381,1718215853987,-500.0,0.00016712,2]
[329285382,1718215853998,-1707.28,0.00016712,2]
[329285383,1718215854010,-500.0,0.00016712,2]
[329285384,1718215854021,-500.0,0.00016712,2]
[329285385,1718215854032,-553.05,0.00016712,2]
[329285386,1718215854043,-494.20080643,0.00016712,2]
[329285387,1718215854058,-5.79919357,0.00016712,2]
[329285388,1718215854069,-2268.01,0.00016712,2]
[329285389,1718215854083,-500.0,0.00016712,2]
[329285390,1718215854094,-5205.32,0.00016712,2]
[329285391,1718215854247,-500.0,0.00016712,2]
[329285392,1718215854260,-1460.35,0.00016712,2]
[329285393,1718215854271,-420.0,0.00016771,2]
[329285394,1718215854281,-18740.83024574,0.00016985,15]
[329285395,1718215854292,-500.0,0.00016985,2]
[329285396,1718215854303,-500.0,0.00016985,2]
[329285397,1718215854314,-500.0,0.00016986,2]
[329285398,1718215854325,-583.96688,0.00016986,2]
[329285399,1718215854336,-500.0,0.00016986,4]
[329285400,1718215854347,-250.0,0.00016986,2]
[329285401,1718215854359,-513.89,0.00016986,2]
[329285402,1718215854369,-500.0,0.00016986,2]
[329285403,1718215854381,-500.0,0.00016986,2]
[329285404,1718215854393,-739.56,0.00016986,2]
[329285405,1718215854403,-500.0,0.00016986,2]
[329285406,1718215854414,-500.0,0.00016986,2]
[329285407,1718215854425,-500.0,0.00016986,2]
[329285408,1718215854437,-500.0,0.00016986,2]
[329285409,1718215854449,-500.0,0.00016986,2]
[329285410,1718215854460,-500.0,0.00016986,2]
[329285411,1718215854472,-232.61,0.00016986,2]
[329285412,1718215854483,-500.0,0.00016986,2]
[329285413,1718215854494,-703.96,0.00016986,2]
[329285414,1718215854504,-500.0,0.00016986,2]
[329285415,1718215854515,-516.52,0.00016986,2]
[329285416,1718215854526,-500.0,0.00016986,2]
[329285417,1718215854538,-500.0,0.00016986,2]
[329285418,1718215854549,-501.41,0.00016986,2]
[329285419,1718215854562,-500.0,0.00016986,2]
[329285420,1718215854573,-500.0,0.00016986,2]
[329285421,1718215854584,-500.0,0.00016986,2]
[329285422,1718215854596,-500.0,0.00016986,2]
[329285423,1718215854607,-500.0,0.00016986,2]
[329285424,1718215854618,-787.83,0.00016986,2]
[329285425,1718215854638,-679.47,0.00016986,2]
[329285426,1718215854657,-500.0,0.00016986,2]
[329285427,1718215854668,-500.0,0.00016986,2]
[329285428,1718215854679,-500.0,0.00016986,2]
[329285429,1718215854690,-500.0,0.00016986,2]
[329285430,1718215854701,-500.0,0.00016986,2]
[329285431,1718215854712,-759.79,0.00016986,2]
[329285432,1718215854724,-500.0,0.00016986,2]
[329285433,1718215854734,-5706.17,0.00016986,2]
[329285434,1718215854746,-500.0,0.00016986,2]
[329285435,1718215854757,-902.94,0.00016986,2]
[329285436,1718215854768,-500.0,0.00016986,2]
[329285437,1718215854778,-500.0,0.00016986,2]
[329285438,1718215854790,-500.0,0.00016986,2]
[329285439,1718215854800,-5764.99,0.00016986,2]
[329285440,1718215854812,-1805.76,0.00016986,2]
[329285441,1718215854824,-500.0,0.00016986,2]
[329285442,1718215854836,-509.92617409,0.00016986,2]
[329285443,1718215854846,-833.24,0.00016986,2]
[329285444,1718215854857,-2946.25,0.00016986,2]
[329285445,1718215854868,-500.0,0.00016986,2]
[329285446,1718215854879,-654.62,0.00016986,2]
[329285447,1718215854890,-500.0,0.00016986,2]
[329285448,1718215854902,-500.0,0.00016986,2]
[329285449,1718215854913,-5127.44,0.00016986,2]
[329285450,1718215854926,-500.0,0.00016986,2]
[329285451,1718215854937,-560.78,0.00016986,2]
[329285452,1718215854948,-866.72,0.00016986,2]
[329285453,1718215854959,-500.0,0.00016986,2]
[329285454,1718215854969,-1720.65,0.00016986,2]
[329285455,1718215854980,-500.0,0.00016986,2]
[329285456,1718215854992,-500.0,0.00016986,2]
[329285457,1718215855003,-500.0,0.00016986,2]
[329285458,1718215855014,-1267.84,0.00016986,2]
[329285459,1718215855025,-500.0,0.00016986,2]
[329285460,1718215855037,-500.0,0.00016986,2]
[329285461,1718215855048,-500.0,0.00016986,2]
[329285462,1718215855059,-500.0,0.00016986,2]
[329285463,1718215855071,-569.97,0.00016986,2]
[329285464,1718215855083,-500.0,0.00016986,2]
[329285465,1718215855094,-1707.28,0.00016986,2]
[329285466,1718215855107,-500.0,0.00016986,2]
[329285467,1718215855117,-500.0,0.00016986,2]
[329285468,1718215855128,-553.05,0.00016986,2]
[329285469,1718215855140,-572.22867144,0.00016986,2]
[329285470,1718215855152,-2268.01,0.00016986,2]
[329285471,1718215855193,-500.0,0.00016986,2]
[329285472,1718215855207,-5205.32,0.00016986,2]
[329285473,1718215855219,-169.18,0.00016986,2]
[329285474,1718215855230,-1460.35,0.00016986,2]
[329285475,1718215855242,-391.87782306,0.00017184,2]
[329285476,1718215855253,-500.0,0.00017259,2]
[329285477,1718215855264,-500.0,0.00017259,2]
[329285478,1718215855275,-500.0,0.0001726,2]
[329285479,1718215855286,-500.0,0.0001726,4]
[329285480,1718215855297,-513.89,0.0001726,2]
[329285481,1718215855309,-500.0,0.0001726,2]
[329285482,1718215855320,-739.56,0.0001726,2]
[329285483,1718215855331,-500.0,0.0001726,2]
[329285484,1718215855341,-500.0,0.0001726,2]
[329285485,1718215855352,-500.0,0.0001726,2]
[329285486,1718215855363,-500.0,0.0001726,2]
[329285487,1718215855374,-500.0,0.0001726,2]
[329285488,1718215855384,-500.0,0.0001726,2]
[329285489,1718215855394,-500.0,0.0001726,2]
[329285490,1718215855405,-703.96,0.0001726,2]
[329285491,1718215855417,-306.38468709,0.0001726,2]
[329285492,1718215855429,-516.52,0.0001726,2]
[329285493,1718215855441,-237.96579198,0.0001726,2]
[329285494,1718215855451,-286.24853813,0.0001726,2]
[329285495,1718215855462,-501.41,0.0001726,2]
[329285496,1718215855472,-500.0,0.0001726,2]
[329285497,1718215855483,-500.0,0.0001726,2]
[329285498,1718215855494,-500.0,0.0001726,2]
[329285499,1718215855505,-500.0,0.0001726,2]
[329285500,1718215855516,-500.0,0.0001726,2]
[329285501,1718215855526,-787.83,0.0001726,2]
[329285502,1718215855537,-679.47,0.0001726,2]
[329285503,1718215855547,-614.39233012,0.0001726,2]
[329285504,1718215855558,-500.0,0.0001726,2]
[329285505,1718215855569,-500.0,0.0001726,2]
[329285506,1718215855580,-500.0,0.0001726,2]
[329285507,1718215855591,-500.0,0.0001726,2]
[329285508,1718215855602,-759.79,0.0001726,2]
[329285509,1718215855613,-500.0,0.0001726,2]
[329285510,1718215855625,-5706.17,0.0001726,2]
[329285511,1718215855636,-645.61,0.0001726,2]
[329285512,1718215855649,-902.94,0.0001726,2]
[329285513,1718215855660,-500.0,0.0001726,2]
[329285514,1718215855686,-352.42729182,0.0001726,2]
[329285515,1718215855696,-500.0,0.0001726,2]
[329285516,1718215855706,-4563.63353137,0.0001726,2]
[329285517,1718215855721,-1201.35646863,0.0001726,2]
[329285518,1718215855732,-1805.76,0.0001726,2]
[329285519,1718215855742,-500.0,0.0001726,2]
[329285520,1718215855752,-833.24,0.0001726,2]
[329285521,1718215855762,-2946.25,0.0001726,2]
[329285522,1718215855771,-500.0,0.0001726,2]
[329285523,1718215855781,-654.62,0.0001726,2]
[329285524,1718215855793,-500.0,0.0001726,2]
[329285525,1718215855803,-5127.44,0.0001726,2]
[329285526,1718215855814,-560.78,0.0001726,2]
[329285527,1718215855824,-866.72,0.0001726,2]
[329285528,1718215855835,-500.0,0.0001726,2]
[329285529,1718215855844,-1720.65,0.0001726,2]
[329285530,1718215855854,-500.0,0.0001726,2]
[329285531,1718215855864,-500.0,0.0001726,2]
[329285532,1718215855874,-1267.84,0.0001726,2]
[329285533,1718215855884,-500.0,0.0001726,2]
[329285534,1718215855894,-500.0,0.0001726,2]
[329285535,1718215855904,-500.0,0.0001726,2]
[329285536,1718215855913,-569.97,0.0001726,2]
[329285537,1718215855924,-500.0,0.0001726,2]
[329285538,1718215855934,-1707.28,0.0001726,2]
[329285539,1718215855945,-500.0,0.0001726,2]
[329285540,1718215855956,-500.0,0.0001726,2]
[329285541,1718215855966,-553.05,0.0001726,2]
[329285542,1718215855977,-2268.01,0.0001726,2]
[329285543,1718215855987,-500.0,0.0001726,2]
[329285544,1718215855997,-5205.32,0.0001726,2]
[329285545,1718215856007,-1460.35,0.0001726,2]
[329285546,1718215856017,-500.0,0.00017533,2]
[329285547,1718215856028,-313.31535632,0.00017533,2]
[329285548,1718215856039,-500.0,0.00017534,2]
[329285549,1718215856049,-500.0,0.00017534,4]
[329285550,1718215856065,-513.89,0.00017534,2]
[329285551,1718215856077,-739.56,0.00017534,2]
[329285552,1718215856088,-500.0,0.00017534,2]
[329285553,1718215856098,-500.0,0.00017534,2]
[329285554,1718215856110,-500.0,0.00017534,2]
[329285555,1718215856121,-500.0,0.00017534,2]
[329285556,1718215856130,-500.0,0.00017534,2]
[329285557,1718215856142,-500.0,0.00017534,2]
[329285558,1718215856152,-500.0,0.00017534,2]
[329285559,1718215856163,-703.96,0.00017534,2]
[329285560,1718215856173,-516.52,0.00017534,2]
[329285561,1718215856199,-501.41,0.00017534,2]
[329285562,1718215856213,-500.0,0.00017534,2]
[329285563,1718215856223,-500.0,0.00017534,2]
[329285564,1718215856234,-500.0,0.00017534,2]
[329285565,1718215856245,-787.83,0.00017534,2]
[329285566,1718215856255,-679.47,0.00017534,2]
[329285567,1718215856265,-500.0,0.00017534,2]
[329285568,1718215856276,-500.0,0.00017534,2]
[329285569,1718215856286,-500.0,0.00017534,2]
[329285570,1718215856297,-759.79,0.00017534,2]
[329285571,1718215856307,-500.0,0.00017534,2]
[329285572,1718215856318,-5706.17,0.00017534,2]
[329285573,1718215856330,-902.94,0.00017534,2]
[329285574,1718215856340,-225.85,0.00017534,2]
[329285575,1718215856351,-416.19817505,0.00017534,2]
[329285576,1718215856498,-713.95701685,0.00017534,2]
[329285577,1718215856716,-500.0,0.00016438,2]
[329285578,1718215856726,-516.22,0.00016712,2]
[329285579,1718215856737,-4634.8348081,0.00017534,2]
[329285580,1718215856750,-1805.76,0.00017534,2]
[329285581,1718215856762,-617.86,0.00017534,2]
[329285582,1718215856774,-833.24,0.00017534,2]
[329285583,1718215856785,-2946.25,0.00017534,2]
[329285584,1718215856797,-282.32,0.00017534,2]
[329285585,1718215856810,-654.62,0.00017534,2]
[329285586,1718215856821,-500.0,0.00017534,2]
[329285587,1718215856832,-5127.44,0.00017534,2]
[329285588,1718215856844,-560.78,0.00017534,2]
[329285589,1718215856855,-866.72,0.00017534,2]
[329285590,1718215856868,-500.0,0.00017534,2]
[329285591,1718215856879,-1720.65,0.00017534,2]
[329285592,1718215856890,-500.0,0.00017534,2]
[329285593,1718215856901,-500.0,0.00017534,2]
[329285594,1718215856912,-1267.84,0.00017534,2]
[329285595,1718215856923,-500.0,0.00017534,2]
[329285596,1718215856935,-500.0,0.00017534,2]
[329285597,1718215856945,-175.36014672,0.00017534,2]
[329285598,1718215856957,-569.97,0.00017534,2]
[329285599,1718215856970,-500.0,0.00017534,2]
[329285600,1718215856983,-1707.28,0.00017534,2]
[329285601,1718215856994,-500.0,0.00017534,2]
[329285602,1718215857007,-553.05,0.00017534,2]
[329285603,1718215857019,-2268.01,0.00017534,2]
[329285604,1718215857030,-500.0,0.00017534,2]
[329285605,1718215857041,-5205.32,0.00017534,2]
[329285606,1718215857052,-1460.35,0.00017534,2]
[329285607,1718215857064,-162.9,0.00017672,2]
[329285608,1718215857079,-88888.0,0.00017708,2]
[329285609,1718215857090,-391.87782306,0.00017756,2]
[329285610,1718215857102,-500.0,0.00017808,4]
[329285611,1718215857113,-513.89,0.00017808,2]
[329285612,1718215857124,-739.56,0.00017808,2]
[329285613,1718215857135,-500.0,0.00017808,2]
[329285614,1718215857147,-500.0,0.00017808,2]
[329285615,1718215857158,-500.0,0.00017808,2]
[329285616,1718215857169,-500.0,0.00017808,2]
[329285617,1718215857180,-326.12781902,0.00017808,2]
[329285618,1718215857220,-500.0,0.00017808,2]
[329285619,1718215857231,-703.96,0.00017808,2]
[329285620,1718215857242,-516.52,0.00017808,2]
[329285621,1718215857253,-501.41,0.00017808,2]
[329285622,1718215857264,-500.0,0.00017808,2]
[329285623,1718215857275,-500.0,0.00017808,2]
[329285624,1718215857286,-500.0,0.00017808,2]
[329285625,1718215857297,-787.83,0.00017808,2]
[329285626,1718215857308,-679.47,0.00017808,2]
[329285627,1718215857319,-500.0,0.00017808,2]
[329285628,1718215857332,-296.12,0.00017808,2]
[329285629,1718215857343,-590.49821086,0.00017808,2]
[329285630,1718215857354,-759.79,0.00017808,2]
[329285631,1718215857365,-519.4593669,0.00017808,2]
[329285632,1718215857376,-5706.17,0.00017808,2]
[329285633,1718215857388,-902.94,0.00017808,2]
[329285634,1718215857399,-5764.99,0.00017808,2]
[329285635,1718215857410,-1805.76,0.00017808,2]
[329285636,1718215857420,-833.24,0.00017808,2]
[329285637,1718215857431,-2946.25,0.00017808,2]
[329285638,1718215857442,-654.62,0.00017808,2]
[329285639,1718215857453,-5127.44,0.00017808,2]
[329285640,1718215857465,-560.78,0.00017808,2]
[329285641,1718215857476,-866.72,0.00017808,2]
[329285642,1718215857487,-500.0,0.00017808,2]
[329285643,1718215857498,-1720.65,0.00017808,2]
[329285644,1718215857508,-500.0,0.00017808,2]
[329285645,1718215857519,-500.0,0.00017808,2]
[329285646,1718215857530,-1267.84,0.00017808,2]
[329285647,1718215857543,-500.0,0.00017808,2]
[329285648,1718215857554,-500.0,0.00017808,2]
[329285649,1718215857567,-569.97,0.00017808,2]
[329285650,1718215857579,-500.0,0.00017808,2]
[329285651,1718215857590,-1707.28,0.00017808,2]
[329285652,1718215857602,-500.0,0.00017808,2]
[329285653,1718215857614,-553.05,0.00017808,2]
[329285654,1718215857625,-2268.01,0.00017808,2]
[329285655,1718215857637,-500.0,0.00017808,2]
[329285656,1718215857648,-5205.32,0.00017808,2]
[329285657,1718215857659,-1460.35,0.00017808,2]
[329285658,1718215857671,-162.9,0.00017883,2]
[329285659,1718215857681,-155.00310006,0.00018,2]
[329285660,1718215857693,-476.69963654,0.00018,2]
[329285661,1718215857712,-876.82850055,0.00018,2]
[329285662,1718215857856,-1355.61945113,0.00018,2]
[329285663,1718215857868,-2765.44251206,0.00018,2]
[329285664,1718215857880,-1750.0,0.00018039,2]
[329285665,1718215857892,-500.0,0.00018082,4]
[329285666,1718215857903,-513.89,0.00018082,2]
[329285667,1718215857914,-739.56,0.00018082,2]
[329285668,1718215857925,-500.0,0.00018082,2]
[329285669,1718215857937,-500.0,0.00018082,2]
[329285670,1718215857951,-500.0,0.00018082,2]
[329285671,1718215857962,-500.0,0.00018082,2]
[329285672,1718215857974,-500.0,0.00018082,2]
[329285673,1718215857985,-703.96,0.00018082,2]
[329285674,1718215857998,-516.52,0.00018082,2]
[329285675,1718215858010,-501.41,0.00018082,2]
[329285676,1718215858021,-500.0,0.00018082,2]
[329285677,1718215858032,-500.0,0.00018082,2]
[329285678,1718215858045,-500.0,0.00018082,2]
[329285679,1718215858057,-787.83,0.00018082,2]
[329285680,1718215858071,-679.47,0.00018082,2]
[329285681,1718215858084,-500.0,0.00018082,2]
[329285682,1718215858100,-759.79,0.00018082,2]
[329285683,1718215858112,-5706.17,0.00018082,2]
[329285684,1718215858125,-902.94,0.00018082,2]
[329285685,1718215858138,-5764.99,0.00018082,2]
[329285686,1718215858152,-1805.76,0.00018082,2]
[329285687,1718215858164,-833.24,0.00018082,2]
[329285688,1718215858178,-2946.25,0.00018082,2]
[329285689,1718215858223,-654.62,0.00018082,2]
[329285690,1718215858237,-5127.44,0.00018082,2]
[329285691,1718215858251,-560.78,0.00018082,2]
[329285692,1718215858267,-866.72,0.00018082,2]
[329285693,1718215858278,-500.0,0.00018082,2]
[329285694,1718215858290,-1720.65,0.00018082,2]
[329285695,1718215858301,-500.0,0.00018082,2]
[329285696,1718215858312,-507.5,0.00018082,2]
[329285697,1718215858323,-1267.84,0.00018082,2]
[329285698,1718215858335,-500.0,0.00018082,2]
[329285699,1718215858346,-500.0,0.00018082,2]
[329285700,1718215858358,-569.97,0.00018082,2]
[329285701,1718215858370,-500.0,0.00018082,2]
[329285702,1718215858382,-1707.28,0.00018082,2]
[329285703,1718215858393,-500.0,0.00018082,2]
[329285704,1718215858403,-553.05,0.00018082,2]
[329285705,1718215858414,-2268.01,0.00018082,2]
[329285706,1718215858426,-500.0,0.00018082,2]
[329285707,1718215858439,-5205.32,0.00018082,2]
[329285708,1718215858449,-1460.35,0.00018082,2]
[329285709,1718215858461,-162.9,0.00018095,2]
[329285710,1718215858473,-155.06838982,0.00018183,2]
[329285711,1718215858484,-162.9,0.00018307,2]
[329285712,1718215858495,-391.87782306,0.00018328,2]
[329285713,1718215858509,-644.4475282,0.00018356,4]
[329285714,1718215858521,-513.89,0.00018356,2]
[329285715,1718215858534,-739.56,0.00018356,2]
[329285716,1718215858545,-500.0,0.00018356,2]
[329285717,1718215858557,-500.0,0.00018356,2]
[329285718,1718215858569,-625.95220211,0.00018356,2]
[329285719,1718215858582,-500.0,0.00018356,2]
[329285720,1718215858594,-500.0,0.00018356,2]
[329285721,1718215858605,-703.96,0.00018356,2]
[329285722,1718215858616,-516.52,0.00018356,2]
[329285723,1718215858627,-501.41,0.00018356,2]
[329285724,1718215858638,-500.0,0.00018356,2]
[329285725,1718215858655,-500.0,0.00018356,2]
[329285726,1718215858669,-500.0,0.00018356,2]
[329285727,1718215858679,-787.83,0.00018356,2]
[329285728,1718215858691,-679.47,0.00018356,2]
[329285729,1718215858701,-500.0,0.00018356,2]
[329285730,1718215858731,-759.79,0.00018356,2]
[329285731,1718215858742,-5706.17,0.00018356,2]
[329285732,1718215858752,-902.94,0.00018356,2]
[329285733,1718215858764,-5764.99,0.00018356,2]
[329285734,1718215858774,-1805.76,0.00018356,2]
[329285735,1718215858785,-833.24,0.00018356,2]
[329285736,1718215858796,-2946.25,0.00018356,2]
[329285737,1718215858808,-654.62,0.00018356,2]
[329285738,1718215858819,-5127.44,0.00018356,2]
[329285739,1718215858829,-560.78,0.00018356,2]
[329285740,1718215858841,-866.72,0.00018356,2]
[329285741,1718215858852,-500.0,0.00018356,2]
[329285742,1718215858863,-1720.65,0.00018356,2]
[329285743,1718215858873,-500.0,0.00018356,2]
[329285744,1718215858886,-1267.84,0.00018356,2]
[329285745,1718215858898,-500.0,0.00018356,2]
[329285746,1718215858909,-500.0,0.00018356,2]
[329285747,1718215858921,-569.97,0.00018356,2]
[329285748,1718215858933,-500.0,0.00018356,2]
[329285749,1718215858945,-1707.28,0.00018356,2]
[329285750,1718215858956,-500.0,0.00018356,2]
[329285751,1718215858969,-553.05,0.00018356,2]
[329285752,1718215858980,-2268.01,0.00018356,2]
[329285753,1718215858991,-500.0,0.00018356,2]
[329285754,1718215859003,-5205.32,0.00018356,2]
[329285755,1718215859013,-1460.35,0.00018356,2]
[329285756,1718215859025,-587.0,0.00018448,2]
[329285757,1718215859035,-155.0,0.0001849,2]
[329285758,1718215859046,-610.59784533,0.000185,2]
[329285759,1718215859060,-308.7876226,0.00018511,2]
[329285760,1718215859073,-162.9,0.00018518,2]
[329285761,1718215859084,-151.0,0.00018518,2]
[329285762,1718215859096,-166.666666,0.00018575,2]
[329285763,1718215859107,-513.89,0.0001863,2]
[329285764,1718215859118,-739.56,0.0001863,2]
[329285765,1718215859129,-500.0,0.0001863,2]
[329285766,1718215859139,-329.91041064,0.0001863,2]
[329285767,1718215859151,-500.0,0.0001863,2]
[329285768,1718215859161,-500.0,0.0001863,2]
[329285769,1718215859171,-703.96,0.0001863,2]
[329285770,1718215859192,-516.52,0.0001863,2]
[329285771,1718215859206,-501.41,0.0001863,2]
[329285772,1718215859231,-500.0,0.0001863,2]
[329285773,1718215859242,-500.0,0.0001863,2]
[329285774,1718215859252,-500.0,0.0001863,2]
[329285775,1718215859263,-787.83,0.0001863,2]
[329285776,1718215859274,-500.0,0.0001863,2]
[329285777,1718215859285,-759.79,0.0001863,2]
[329285778,1718215859297,-5706.17,0.0001863,2]
[329285779,1718215859308,-902.94,0.0001863,2]
[329285780,1718215859319,-2153.22048709,0.0001863,2]
[329285781,1718215859341,-3611.76951291,0.0001863,2]
[329285782,1718215859351,-1805.76,0.0001863,2]
[329285783,1718215859362,-833.24,0.0001863,2]
[329285784,1718215859373,-2946.25,0.0001863,2]
[329285785,1718215859384,-654.62,0.0001863,2]
[329285786,1718215859394,-5127.44,0.0001863,2]
[329285787,1718215859405,-560.78,0.0001863,2]
[329285788,1718215859416,-866.72,0.0001863,2]
[329285789,1718215859427,-500.0,0.0001863,2]
[329285790,1718215859437,-166.24996519,0.0001863,2]
[329285791,1718215859452,-696.97249476,0.0001863,2]
[329285792,1718215859465,-857.42754005,0.0001863,2]
[329285793,1718215859476,-500.0,0.0001863,2]
[329285794,1718215859488,-1267.84,0.0001863,2]
[329285795,1718215859499,-500.0,0.0001863,2]
[329285796,1718215859509,-500.0,0.0001863,2]
[329285797,1718215859520,-569.97,0.0001863,2]
[329285798,1718215859532,-500.0,0.0001863,2]
[329285799,1718215859544,-1707.28,0.0001863,2]
[329285800,1718215859555,-500.0,0.0001863,2]
[329285801,1718215859565,-553.05,0.0001863,2]
[329285802,1718215859577,-2268.01,0.0001863,2]
[329285803,1718215859589,-271.37471911,0.0001863,2]
[329285804,1718215859601,-5205.32,0.0001863,2]
[329285805,1718215859612,-250.0,0.0001863,2]
[329285806,1718215859624,-162.9,0.0001873,2]
[329285807,1718215859635,-151.0,0.0001873,2]
[329285808,1718215859650,-174.48,0.00018765,2]
[329285809,1718215859664,-499.0,0.00018765,2]
[329285810,1718215859679,-6936.69658998,0.000189,2]
[329285811,1718215859693,-391.87782306,0.000189,2]
[329285812,1718215859713,-513.89,0.00018904,2]
[329285813,1718215859734,-739.56,0.00018904,2]
[329285814,1718215859746,-500.0,0.00018904,2]
[329285815,1718215859761,-500.0,0.00018904,2]
[329285816,1718215859775,-458.91390049,0.00018904,2]
[329285817,1718215859788,-703.96,0.00018904,2]
[329285818,1718215859804,-516.52,0.00018904,2]
[329285819,1718215859820,-501.41,0.00018904,2]
[329285820,1718215859835,-500.0,0.00018904,2]
[329285821,1718215859848,-500.0,0.00018904,2]
[329285822,1718215859863,-500.0,0.00018904,2]
[329285823,1718215859877,-787.83,0.00018904,2]